[Event "Titled Tuesday Blitz April 12 Late 2022"]
[White "Melkumyan, Hrant"]
[Black "Rasulov, Vugar"]
[WhiteFideId "13302485"]
[BlackFideId "13402390"]
[WhiteElo "2604"]
[BlackElo "2560"]
[Result "0-1"]
[Round "09"]
[TimeControl "180+1"]
[Date "2022.04.12"]
[WhiteClock "0:00:07"]
[BlackClock "0:00:18"]

1. c4 {[%clk 0:02:53]}  c6 {[%clk 0:02:59]} 2. Nf3 {[%clk 0:02:49]}  d5 {[%clk 0:02:59]} 3. g3 {[%clk 0:02:50]}  Nf6 {[%clk 0:02:59]} 4. Bg2 {[%clk 0:02:49]}  g6 {[%clk 0:03:00]} 5. b3 {[%clk 0:02:48]}  Bg7 {[%clk 0:03:00]} 6. Bb2 {[%clk 0:02:49]}  O-O {[%clk 0:03:00]} 7. O-O {[%clk 0:02:49]}  a5 {[%clk 0:02:58]} 8. Nc3 {[%clk 0:02:43]}  Ne4 {[%clk 0:02:57]} 9. d4 {[%clk 0:02:41]}  Bf5 {[%clk 0:02:53]} 10. e3 {[%clk 0:02:40]}  Nxc3 {[%clk 0:02:50]} 11. Bxc3 {[%clk 0:02:40]}  Be4 {[%clk 0:02:50]} 12. Qe2 {[%clk 0:02:40]}  a4 {[%clk 0:02:50]} 13. Rfc1 {[%clk 0:02:39]}  Nd7 {[%clk 0:02:46]} 14. Bh3 {[%clk 0:02:39]}  Bxf3 {[%clk 0:02:32]} 15. Qxf3 {[%clk 0:02:39]}  e6 {[%clk 0:02:33]} 16. Qe2 {[%clk 0:02:40]}  Qe7 {[%clk 0:02:27]} 17. Bg2 {[%clk 0:02:38]}  Ra6 {[%clk 0:02:11]} 18. Rab1 {[%clk 0:02:38]}  axb3 {[%clk 0:02:11]} 19. axb3 {[%clk 0:02:37]}  Rfa8 {[%clk 0:02:10]} 20. Rc2 {[%clk 0:02:29]}  h5 {[%clk 0:02:03]} 21. Bf1 {[%clk 0:02:28]}  Nf6 {[%clk 0:01:55]} 22. Qe1 {[%clk 0:02:24]}  R6a7 {[%clk 0:01:49]} 23. Bb4 {[%clk 0:02:21]}  Qd8 {[%clk 0:01:49]} 24. Bd3 {[%clk 0:02:15]}  Ra2 {[%clk 0:01:45]} 25. Qe2 {[%clk 0:02:11]}  Rxc2 {[%clk 0:01:44]} 26. Qxc2 {[%clk 0:02:12]}  h4 {[%clk 0:01:42]} 27. Kg2 {[%clk 0:02:10]}  Nh7 {[%clk 0:01:35]} 28. Qe2 {[%clk 0:02:02]}  Ng5 {[%clk 0:01:27]} 29. f3 {[%clk 0:01:48]}  h3+ {[%clk 0:01:25]} 30. Kf2 {[%clk 0:01:45]}  Qf6 {[%clk 0:01:22]} 31. Rf1 {[%clk 0:01:16]}  e5 {[%clk 0:01:09]} 32. dxe5 {[%clk 0:01:08]}  Qxe5 {[%clk 0:01:10]} 33. Kg1 {[%clk 0:01:08]}  Qe6 {[%clk 0:00:58]} 34. cxd5 {[%clk 0:01:05]}  cxd5 {[%clk 0:00:59]} 35. Bd2 {[%clk 0:01:02]}  Ra2 {[%clk 0:00:57]} 36. Qe1 {[%clk 0:00:44]}  Qb6 {[%clk 0:00:49]} 37. b4 {[%clk 0:00:38]}  Qc6 {[%clk 0:00:43]} 38. Rf2 {[%clk 0:00:36]}  Ra1 {[%clk 0:00:42]} 39. Bb1 {[%clk 0:00:35]}  Qc4 {[%clk 0:00:41]} 40. Rf1 {[%clk 0:00:32]}  Qb3 {[%clk 0:00:40]} 41. Kf2 {[%clk 0:00:29]}  d4 {[%clk 0:00:36]} 42. Qd1 {[%clk 0:00:25]}  Qb2 {[%clk 0:00:27]} 43. Ke2 {[%clk 0:00:07]}  dxe3 {[%clk 0:00:22]} 44. Kxe3 {[%clk 0:00:08]}  Ne6 {[%clk 0:00:20]} 45. Qc2 {[%clk 0:00:06]}  Ra3+ {[%clk 0:00:18]} 46. Ke2 {[%clk 0:00:07]}  Nd4+ {[%clk 0:00:18]} 0-1


[Site "https://www.chess.com"]

[Event "Titled Tuesday Blitz April 12 Late 2022"]
[White "Molenda, Marcin"]
[Black "Shuvalova, Polina"]
[WhiteFideId "1173065"]
[BlackFideId "24171760"]
[WhiteElo "2067"]
[BlackElo "2355"]
[Result "1-0"]
[Round "09"]
[TimeControl "180+1"]
[Date "2022.04.12"]
[WhiteClock "0:00:08"]
[BlackClock "0:00:05"]

1. d4 {[%clk 0:02:59]}  Nf6 {[%clk 0:02:54]} 2. c4 {[%clk 0:02:59]}  e6 {[%clk 0:02:53]} 3. g3 {[%clk 0:02:59]}  d5 {[%clk 0:02:53]} 4. Nf3 {[%clk 0:02:59]}  Bb4+ {[%clk 0:02:54]} 5. Bd2 {[%clk 0:02:59]}  Be7 {[%clk 0:02:54]} 6. Bg2 {[%clk 0:03:00]}  Nbd7 {[%clk 0:02:55]} 7. Qc2 {[%clk 0:02:46]}  c6 {[%clk 0:02:54]} 8. O-O {[%clk 0:02:46]}  O-O {[%clk 0:02:54]} 9. Bf4 {[%clk 0:02:40]}  b6 {[%clk 0:02:53]} 10. Ne5 {[%clk 0:02:34]}  Bb7 {[%clk 0:02:41]} 11. cxd5 {[%clk 0:02:34]}  cxd5 {[%clk 0:02:39]} 12. Nc6 {[%clk 0:02:34]}  Bxc6 {[%clk 0:02:39]} 13. Qxc6 {[%clk 0:02:34]}  Qc8 {[%clk 0:02:28]} 14. Qxc8 {[%clk 0:02:19]}  Rfxc8 {[%clk 0:02:26]} 15. Nc3 {[%clk 0:02:20]}  Rc4 {[%clk 0:02:22]} 16. Rfd1 {[%clk 0:02:19]}  Rac8 {[%clk 0:02:21]} 17. Bf1 {[%clk 0:02:16]}  Nh5 {[%clk 0:02:13]} 18. Bc1 {[%clk 0:02:11]}  R4c7 {[%clk 0:01:59]} 19. Bd2 {[%clk 0:02:05]}  Nb8 {[%clk 0:01:49]} 20. e3 {[%clk 0:02:02]}  a6 {[%clk 0:01:48]} 21. Rac1 {[%clk 0:02:00]}  Nf6 {[%clk 0:01:47]} 22. f3 {[%clk 0:02:00]}  b5 {[%clk 0:01:44]} 23. Kf2 {[%clk 0:01:55]}  g5 {[%clk 0:01:40]} 24. h3 {[%clk 0:01:48]}  h6 {[%clk 0:01:38]} 25. Ne2 {[%clk 0:01:45]}  Rc2 {[%clk 0:01:31]} 26. Rxc2 {[%clk 0:01:37]}  Rxc2 {[%clk 0:01:30]} 27. Bc1 {[%clk 0:01:29]}  Nc6 {[%clk 0:01:23]} 28. Rd2 {[%clk 0:01:26]}  Rxd2 {[%clk 0:01:17]} 29. Bxd2 {[%clk 0:01:27]}  Kg7 {[%clk 0:01:14]} 30. Nc1 {[%clk 0:01:25]}  Bb4 {[%clk 0:01:12]} 31. Ke1 {[%clk 0:01:22]}  Nh5 {[%clk 0:01:07]} 32. g4 {[%clk 0:01:18]}  Nf6 {[%clk 0:01:07]} 33. a3 {[%clk 0:01:15]}  Bxd2+ {[%clk 0:01:07]} 34. Kxd2 {[%clk 0:01:16]}  Nd7 {[%clk 0:00:58]} 35. a4 {[%clk 0:01:07]}  bxa4 {[%clk 0:00:44]} 36. Bxa6 {[%clk 0:01:07]}  Nb6 {[%clk 0:00:45]} 37. Bb5 {[%clk 0:01:02]}  Na5 {[%clk 0:00:44]} 38. Nd3 {[%clk 0:00:52]}  Nac4+ {[%clk 0:00:42]} 39. Ke2 {[%clk 0:00:52]}  Kf6 {[%clk 0:00:38]} 40. e4 {[%clk 0:00:27]}  Ke7 {[%clk 0:00:38]} 41. Kd1 {[%clk 0:00:20]}  Nd6 {[%clk 0:00:32]} 42. Bc6 {[%clk 0:00:14]}  dxe4 {[%clk 0:00:31]} 43. fxe4 {[%clk 0:00:14]}  Kd8 {[%clk 0:00:31]} 44. e5 {[%clk 0:00:14]}  Ndc4 {[%clk 0:00:30]} 45. Kc2 {[%clk 0:00:12]}  Kc7 {[%clk 0:00:31]} 46. Bb5 {[%clk 0:00:12]}  Ne3+ {[%clk 0:00:31]} 47. Kb1 {[%clk 0:00:12]}  Ng2 {[%clk 0:00:29]} 48. Nc5 {[%clk 0:00:12]}  Nf4 {[%clk 0:00:27]} 49. Be8 {[%clk 0:00:11]}  Kd8 {[%clk 0:00:21]} 50. Bxf7 {[%clk 0:00:12]}  Ke7 {[%clk 0:00:21]} 51. Bg8 {[%clk 0:00:12]}  Nbd5 {[%clk 0:00:18]} 52. Ka2 {[%clk 0:00:10]}  Nc7 {[%clk 0:00:17]} 53. Ka3 {[%clk 0:00:09]}  Nxh3 {[%clk 0:00:18]} 54. Kxa4 {[%clk 0:00:09]}  Nf2 {[%clk 0:00:19]} 55. b4 {[%clk 0:00:08]}  Nxg4 {[%clk 0:00:18]} 56. b5 {[%clk 0:00:08]}  Kf8 {[%clk 0:00:04]} 57. b6 {[%clk 0:00:08]}  Nd5 {[%clk 0:00:03]} 58. b7 {[%clk 0:00:08]}  Nb6+ {[%clk 0:00:04]} 59. Kb5 {[%clk 0:00:08]}  Kxg8 {[%clk 0:00:05]} 60. Kxb6 {[%clk 0:00:08]} 1-0


[Site "https://www.chess.com"]

[Event "Titled Tuesday Blitz April 12 Late 2022"]
[White "Pesotskiy, Mikhail"]
[Black "Lewtak, Damian"]
[WhiteFideId "34164453"]
[BlackFideId "1141724"]
[WhiteElo "2010"]
[BlackElo "2362"]
[Result "1-0"]
[Round "09"]
[TimeControl "180+1"]
[Date "2022.04.13"]
[WhiteClock "0:00:17"]
[BlackClock "0:00:58"]

1. d4 {[%clk 0:03:00]}  a6 {[%clk 0:03:00]} 2. c4 {[%clk 0:02:59]}  b5 {[%clk 0:03:00]} 3. Nc3 {[%clk 0:02:58]}  bxc4 {[%clk 0:03:00]} 4. e4 {[%clk 0:02:58]}  d5 {[%clk 0:02:56]} 5. exd5 {[%clk 0:02:56]}  Nd7 {[%clk 0:02:55]} 6. Bxc4 {[%clk 0:02:56]}  Nb6 {[%clk 0:02:55]} 7. b3 {[%clk 0:02:51]}  Nf6 {[%clk 0:02:56]} 8. Nf3 {[%clk 0:02:51]}  Nfxd5 {[%clk 0:02:54]} 9. Nxd5 {[%clk 0:02:51]}  Nxd5 {[%clk 0:02:54]} 10. Ba3 {[%clk 0:02:46]}  g6 {[%clk 0:02:37]} 11. O-O {[%clk 0:02:45]}  Bg7 {[%clk 0:02:35]} 12. Rc1 {[%clk 0:02:43]}  c6 {[%clk 0:02:30]} 13. Ne5 {[%clk 0:02:42]}  Bxe5 {[%clk 0:02:29]} 14. dxe5 {[%clk 0:02:43]}  O-O {[%clk 0:02:29]} 15. Qd4 {[%clk 0:02:26]}  Be6 {[%clk 0:02:14]} 16. Rfd1 {[%clk 0:02:24]}  Qa5 {[%clk 0:02:10]} 17. Qc5 {[%clk 0:02:20]}  Qxc5 {[%clk 0:02:08]} 18. Bxc5 {[%clk 0:02:21]}  Rfd8 {[%clk 0:02:08]} 19. Bxd5 {[%clk 0:02:09]}  Rxd5 {[%clk 0:02:09]} 20. Bxe7 {[%clk 0:02:07]}  h6 {[%clk 0:02:04]} 21. Bd6 {[%clk 0:01:58]}  g5 {[%clk 0:02:01]} 22. Rxd5 {[%clk 0:01:50]}  Bxd5 {[%clk 0:02:00]} 23. Rc3 {[%clk 0:01:28]}  a5 {[%clk 0:01:56]} 24. a3 {[%clk 0:01:20]}  Kh7 {[%clk 0:01:51]} 25. f3 {[%clk 0:01:17]}  Kg6 {[%clk 0:01:48]} 26. Kf2 {[%clk 0:01:18]}  h5 {[%clk 0:01:48]} 27. Ke3 {[%clk 0:01:11]}  Kf5 {[%clk 0:01:41]} 28. g3 {[%clk 0:01:01]}  Ra7 {[%clk 0:01:33]} 29. Kd4 {[%clk 0:00:59]}  Rb7 {[%clk 0:01:32]} 30. b4 {[%clk 0:00:57]}  a4 {[%clk 0:01:29]} 31. Kc5 {[%clk 0:00:51]}  g4 {[%clk 0:01:26]} 32. fxg4+ {[%clk 0:00:47]}  Ke4 {[%clk 0:01:26]} 33. Bf8 {[%clk 0:00:30]}  hxg4 {[%clk 0:01:26]} 34. Kd6 {[%clk 0:00:24]}  Rb8 {[%clk 0:01:25]} 35. Bg7 {[%clk 0:00:20]}  Rg8 {[%clk 0:01:14]} 36. Bf6 {[%clk 0:00:20]}  Rg6 {[%clk 0:01:13]} 37. Rxc6 {[%clk 0:00:20]}  Bxc6 {[%clk 0:01:13]} 38. Kxc6 {[%clk 0:00:21]}  Rh6 {[%clk 0:01:13]} 39. b5 {[%clk 0:00:20]}  Rxh2 {[%clk 0:01:12]} 40. b6 {[%clk 0:00:21]}  Rc2+ {[%clk 0:01:12]} 41. Kd7 {[%clk 0:00:21]}  Rb2 {[%clk 0:01:11]} 42. Kc7 {[%clk 0:00:21]}  Rc2+ {[%clk 0:01:12]} 43. Kb8 {[%clk 0:00:21]}  Rb2 {[%clk 0:01:12]} 44. b7 {[%clk 0:00:21]}  Kf3 {[%clk 0:01:10]} 45. Bh4 {[%clk 0:00:19]}  Ke4 {[%clk 0:00:58]} 46. Ka8 {[%clk 0:00:19]}  Kxe5 {[%clk 0:00:59]} 47. b8=Q+ {[%clk 0:00:18]}  Rxb8+ {[%clk 0:01:00]} 48. Kxb8 {[%clk 0:00:18]}  f5 {[%clk 0:01:01]} 49. Bg5 {[%clk 0:00:18]}  Kd5 {[%clk 0:00:58]} 50. Bf4 {[%clk 0:00:18]}  Kc4 {[%clk 0:00:59]} 51. Kb7 {[%clk 0:00:18]}  Kb3 {[%clk 0:00:59]} 52. Bd6 {[%clk 0:00:19]}  f4 {[%clk 0:01:00]} 53. gxf4 {[%clk 0:00:14]}  g3 {[%clk 0:01:00]} 54. f5 {[%clk 0:00:15]}  g2 {[%clk 0:00:58]} 55. Bh2 {[%clk 0:00:15]}  Kc4 {[%clk 0:00:59]} 56. f6 {[%clk 0:00:16]}  Kb3 {[%clk 0:00:57]} 57. f7 {[%clk 0:00:16]}  Kxa3 {[%clk 0:00:58]} 58. f8=Q+ {[%clk 0:00:17]}  Kb2 {[%clk 0:00:58]} 59. Qf2+ {[%clk 0:00:17]} 1-0


[Site "https://www.chess.com"]

[Event "Titled Tuesday Blitz April 12 Late 2022"]
[White "Pinheiro, Iung Alicio de O."]
[Black "Petrovskyi, Vadym"]
[WhiteFideId "2104350"]
[BlackFideId "14165210"]
[WhiteElo "2555"]
[BlackElo "2400"]
[Result "1-0"]
[Round "09"]
[TimeControl "180+1"]
[Date "2022.04.12"]
[WhiteClock "0:00:19"]
[BlackClock "0:00:21"]

1. c4 {[%clk 0:03:00]}  Nf6 {[%clk 0:02:56]} 2. g3 {[%clk 0:02:59]}  g6 {[%clk 0:02:57]} 3. Bg2 {[%clk 0:02:59]}  Bg7 {[%clk 0:02:57]} 4. Nc3 {[%clk 0:03:00]}  O-O {[%clk 0:02:57]} 5. d3 {[%clk 0:03:00]}  d6 {[%clk 0:02:57]} 6. Bg5 {[%clk 0:03:00]}  c5 {[%clk 0:02:57]} 7. Qd2 {[%clk 0:02:59]}  Nc6 {[%clk 0:02:57]} 8. Nf3 {[%clk 0:02:47]}  Rb8 {[%clk 0:02:47]} 9. Rb1 {[%clk 0:02:43]}  a6 {[%clk 0:02:46]} 10. a3 {[%clk 0:02:43]}  b5 {[%clk 0:02:40]} 11. cxb5 {[%clk 0:02:44]}  axb5 {[%clk 0:02:41]} 12. b4 {[%clk 0:02:43]}  cxb4 {[%clk 0:02:35]} 13. axb4 {[%clk 0:02:44]}  d5 {[%clk 0:02:33]} 14. Bf4 {[%clk 0:02:20]}  Rb7 {[%clk 0:02:21]} 15. Ne5 {[%clk 0:02:07]}  Bd7 {[%clk 0:01:56]} 16. Nxd5 {[%clk 0:01:28]}  Nxd5 {[%clk 0:01:35]} 17. Bxd5 {[%clk 0:01:24]}  Nxe5 {[%clk 0:01:34]} 18. Bxb7 {[%clk 0:01:21]}  Qc7 {[%clk 0:01:09]} 19. Bg2 {[%clk 0:01:00]}  g5 {[%clk 0:00:51]} 20. Bxe5 {[%clk 0:00:47]}  Qxe5 {[%clk 0:00:52]} 21. O-O {[%clk 0:00:47]}  h5 {[%clk 0:00:52]} 22. d4 {[%clk 0:00:44]}  Qd6 {[%clk 0:00:50]} 23. Qxg5 {[%clk 0:00:39]}  Rc8 {[%clk 0:00:50]} 24. e3 {[%clk 0:00:36]}  Be6 {[%clk 0:00:41]} 25. Qxh5 {[%clk 0:00:35]}  Bc4 {[%clk 0:00:40]} 26. Rfd1 {[%clk 0:00:35]}  Rc7 {[%clk 0:00:39]} 27. Qg5 {[%clk 0:00:34]}  Ra7 {[%clk 0:00:38]} 28. h4 {[%clk 0:00:33]}  Ra4 {[%clk 0:00:37]} 29. Qc5 {[%clk 0:00:31]}  Qd8 {[%clk 0:00:37]} 30. d5 {[%clk 0:00:28]}  Be5 {[%clk 0:00:35]} 31. Bf1 {[%clk 0:00:25]}  Bd6 {[%clk 0:00:33]} 32. Qd4 {[%clk 0:00:25]}  Qc7 {[%clk 0:00:21]} 33. Rdc1 {[%clk 0:00:22]}  Bxg3 {[%clk 0:00:20]} 34. Qg4+ {[%clk 0:00:22]}  Kf8 {[%clk 0:00:19]} 35. Qxg3 {[%clk 0:00:22]}  e5 {[%clk 0:00:19]} 36. dxe6 {[%clk 0:00:21]}  Qe7 {[%clk 0:00:20]} 37. Bxc4 {[%clk 0:00:20]}  bxc4 {[%clk 0:00:21]} 38. Rxc4 {[%clk 0:00:19]}  Ra8 {[%clk 0:00:22]} 39. Rg4 {[%clk 0:00:19]}  Qf6 {[%clk 0:00:17]} 40. Rg8+ {[%clk 0:00:19]}  Ke7 {[%clk 0:00:18]} 41. Rxa8 {[%clk 0:00:19]}  Qf5 {[%clk 0:00:19]} 42. Qc7+ {[%clk 0:00:19]}  Kxe6 {[%clk 0:00:20]} 43. Qc8+ {[%clk 0:00:18]}  Kd5 {[%clk 0:00:21]} 44. Ra5+ {[%clk 0:00:19]}  Ke4 {[%clk 0:00:21]} 45. Qxf5# {[%clk 0:00:19]} 1-0


[Site "https://www.chess.com"]

[Event "Titled Tuesday Blitz April 12 Late 2022"]
[White "Plazuelo Pascual, Juan"]
[Black "Maksimovic, Bojan"]
[WhiteFideId "32059566"]
[BlackFideId "14408120"]
[WhiteElo "2359"]
[BlackElo "2448"]
[Result "1/2-1/2"]
[Round "09"]
[TimeControl "180+1"]
[Date "2022.04.12"]
[WhiteClock "0:00:13"]
[BlackClock "0:00:28"]

1. d4 {[%clk 0:02:55]}  d5 {[%clk 0:02:44]} 2. c4 {[%clk 0:02:55]}  e5 {[%clk 0:02:44]} 3. dxe5 {[%clk 0:02:55]}  d4 {[%clk 0:02:45]} 4. Nf3 {[%clk 0:02:55]}  Nc6 {[%clk 0:02:46]} 5. a3 {[%clk 0:02:55]}  Nge7 {[%clk 0:02:45]} 6. Nbd2 {[%clk 0:02:56]}  a5 {[%clk 0:02:40]} 7. Nb3 {[%clk 0:02:46]}  Nf5 {[%clk 0:02:40]} 8. g4 {[%clk 0:02:29]}  Nh4 {[%clk 0:02:27]} 9. Nbxd4 {[%clk 0:02:24]}  Nxf3+ {[%clk 0:02:26]} 10. Nxf3 {[%clk 0:02:23]}  Qxd1+ {[%clk 0:02:27]} 11. Kxd1 {[%clk 0:02:24]}  Bxg4 {[%clk 0:02:27]} 12. Bf4 {[%clk 0:02:05]}  O-O-O+ {[%clk 0:02:26]} 13. Kc2 {[%clk 0:02:05]}  Bxf3 {[%clk 0:02:11]} 14. exf3 {[%clk 0:02:04]}  Nd4+ {[%clk 0:02:11]} 15. Kc3 {[%clk 0:01:54]}  Nxf3 {[%clk 0:01:53]} 16. Bh3+ {[%clk 0:00:47]}  Kb8 {[%clk 0:01:52]} 17. b4 {[%clk 0:00:42]}  Nd4 {[%clk 0:01:42]} 18. Be3 {[%clk 0:00:35]}  Nc6 {[%clk 0:01:28]} 19. bxa5 {[%clk 0:00:32]}  Nxa5 {[%clk 0:01:23]} 20. Rhd1 {[%clk 0:00:23]}  Be7 {[%clk 0:01:20]} 21. f4 {[%clk 0:00:19]}  b6 {[%clk 0:01:20]} 22. Rxd8+ {[%clk 0:00:18]}  Rxd8 {[%clk 0:01:19]} 23. Bf5 {[%clk 0:00:17]}  g6 {[%clk 0:01:19]} 24. Be4 {[%clk 0:00:17]}  Nb7 {[%clk 0:01:19]} 25. a4 {[%clk 0:00:15]}  Bc5 {[%clk 0:01:17]} 26. Re1 {[%clk 0:00:07]}  Bxe3 {[%clk 0:01:15]} 27. Rxe3 {[%clk 0:00:07]}  Nc5 {[%clk 0:01:16]} 28. Bc2 {[%clk 0:00:08]}  Kb7 {[%clk 0:01:11]} 29. Rh3 {[%clk 0:00:09]}  h5 {[%clk 0:00:54]} 30. f5 {[%clk 0:00:09]}  Re8 {[%clk 0:00:42]} 31. fxg6 {[%clk 0:00:08]}  fxg6 {[%clk 0:00:41]} 32. Bxg6 {[%clk 0:00:09]}  Rxe5 {[%clk 0:00:41]} 33. Rxh5 {[%clk 0:00:09]}  Re3+ {[%clk 0:00:42]} 34. Kd2 {[%clk 0:00:10]}  Ra3 {[%clk 0:00:40]} 35. Bc2 {[%clk 0:00:10]}  Nxa4 {[%clk 0:00:38]} 36. Bxa4 {[%clk 0:00:09]}  Rxa4 {[%clk 0:00:39]} 37. Kc3 {[%clk 0:00:10]}  Ra3+ {[%clk 0:00:39]} 38. Kb2 {[%clk 0:00:10]}  Rf3 {[%clk 0:00:39]} 39. h4 {[%clk 0:00:07]}  Rh3 {[%clk 0:00:39]} 40. Rh6 {[%clk 0:00:07]}  Ka6 {[%clk 0:00:39]} 41. Rc6 {[%clk 0:00:06]}  Kb7 {[%clk 0:00:37]} 42. Rh6 {[%clk 0:00:06]}  c5 {[%clk 0:00:36]} 43. h5 {[%clk 0:00:06]}  Ka6 {[%clk 0:00:36]} 44. Kc2 {[%clk 0:00:02]}  Ka5 {[%clk 0:00:37]} 45. Kb2 {[%clk 0:00:03]}  Kb4 {[%clk 0:00:30]} 46. Rxb6+ {[%clk 0:00:03]}  Kxc4 {[%clk 0:00:31]} 47. h6 {[%clk 0:00:03]}  Rh2+ {[%clk 0:00:31]} 48. Ka3 {[%clk 0:00:03]}  Kc3 {[%clk 0:00:23]} 49. Rc6 {[%clk 0:00:03]}  c4 {[%clk 0:00:23]} 50. Ka4 {[%clk 0:00:03]}  Kd3 {[%clk 0:00:16]} 51. Kb4 {[%clk 0:00:04]}  Rb2+ {[%clk 0:00:15]} 52. Ka3 {[%clk 0:00:04]}  Rb7 {[%clk 0:00:15]} 53. Rd6+ {[%clk 0:00:02]}  Kc2 {[%clk 0:00:15]} 54. Rg6 {[%clk 0:00:02]}  c3 {[%clk 0:00:13]} 55. Rg2+ {[%clk 0:00:03]}  Kd3 {[%clk 0:00:12]} 56. Rg3+ {[%clk 0:00:03]}  Kd4 {[%clk 0:00:12]} 57. Rg4+ {[%clk 0:00:04]}  Kd5 {[%clk 0:00:10]} 58. Rg3 {[%clk 0:00:04]}  Kc4 {[%clk 0:00:09]} 59. Rg4+ {[%clk 0:00:04]}  Kd3 {[%clk 0:00:08]} 60. Rg3+ {[%clk 0:00:04]}  Kd2 {[%clk 0:00:08]} 61. Rg2+ {[%clk 0:00:05]}  Ke1 {[%clk 0:00:08]} 62. Rg1+ {[%clk 0:00:06]}  Ke2 {[%clk 0:00:07]} 63. Rg2+ {[%clk 0:00:05]}  Ke3 {[%clk 0:00:06]} 64. Rg3+ {[%clk 0:00:05]}  Kd4 {[%clk 0:00:05]} 65. Rg2 {[%clk 0:00:04]}  Rh7 {[%clk 0:00:04]} 66. Kb3 {[%clk 0:00:04]}  Rxh6 {[%clk 0:00:04]} 67. Rg4+ {[%clk 0:00:04]}  Kd3 {[%clk 0:00:04]} 68. Rg3+ {[%clk 0:00:05]}  Kd2 {[%clk 0:00:05]} 69. Rg2+ {[%clk 0:00:05]}  Ke3 {[%clk 0:00:05]} 70. Kxc3 {[%clk 0:00:05]}  Rc6+ {[%clk 0:00:05]} 71. Kb3 {[%clk 0:00:05]}  Rb6+ {[%clk 0:00:06]} 72. Kc3 {[%clk 0:00:05]}  Rb8 {[%clk 0:00:07]} 73. Rg3+ {[%clk 0:00:05]}  Kf4 {[%clk 0:00:07]} 74. Rg1 {[%clk 0:00:06]}  Rc8+ {[%clk 0:00:07]} 75. Kd2 {[%clk 0:00:07]}  Kf3 {[%clk 0:00:08]} 76. Rc1 {[%clk 0:00:06]}  Rd8+ {[%clk 0:00:08]} 77. Kc2 {[%clk 0:00:06]}  Ke3 {[%clk 0:00:08]} 78. Rd1 {[%clk 0:00:07]}  Rc8+ {[%clk 0:00:08]} 79. Kb2 {[%clk 0:00:07]}  Rc7 {[%clk 0:00:09]} 80. Rd6 {[%clk 0:00:07]}  Ke4 {[%clk 0:00:10]} 81. Rd8 {[%clk 0:00:07]}  Ke5 {[%clk 0:00:10]} 82. Rd1 {[%clk 0:00:08]}  Rb7+ {[%clk 0:00:10]} 83. Kc2 {[%clk 0:00:08]}  Rc7+ {[%clk 0:00:11]} 84. Kb2 {[%clk 0:00:09]}  Ke4 {[%clk 0:00:12]} 85. Rd2 {[%clk 0:00:08]}  Rc6 {[%clk 0:00:12]} 86. Rd8 {[%clk 0:00:09]}  Ke3 {[%clk 0:00:13]} 87. Rd7 {[%clk 0:00:09]}  Ke2 {[%clk 0:00:13]} 88. Rd8 {[%clk 0:00:09]}  Rc5 {[%clk 0:00:14]} 89. Rd7 {[%clk 0:00:10]}  Rg5 {[%clk 0:00:14]} 90. Rd8 {[%clk 0:00:10]}  Ke3 {[%clk 0:00:15]} 91. Rd7 {[%clk 0:00:11]}  Ke4 {[%clk 0:00:16]} 92. Rd8 {[%clk 0:00:11]}  Rg2+ {[%clk 0:00:16]} 93. Kc3 {[%clk 0:00:11]}  Ke5 {[%clk 0:00:17]} 94. Rd7 {[%clk 0:00:11]}  Rg3+ {[%clk 0:00:18]} 95. Rd3 {[%clk 0:00:12]}  Rg4 {[%clk 0:00:18]} 96. Rd1 {[%clk 0:00:12]}  Rg5 {[%clk 0:00:18]} 97. Rd2 {[%clk 0:00:12]}  Ke6 {[%clk 0:00:19]} 98. Rd3 {[%clk 0:00:12]}  Rc5+ {[%clk 0:00:19]} 99. Kd4 {[%clk 0:00:11]}  Rd5+ {[%clk 0:00:19]} 100. Kc3 {[%clk 0:00:12]}  Re5 {[%clk 0:00:20]} 101. Kd4 {[%clk 0:00:12]}  Ra5 {[%clk 0:00:20]} 102. Kc3 {[%clk 0:00:12]}  Ke5 {[%clk 0:00:20]} 103. Rd1 {[%clk 0:00:12]}  Ra3+ {[%clk 0:00:20]} 104. Kb2 {[%clk 0:00:12]}  Rh3 {[%clk 0:00:21]} 105. Kc2 {[%clk 0:00:12]}  Ke4 {[%clk 0:00:22]} 106. Rd8 {[%clk 0:00:12]}  Rh2+ {[%clk 0:00:22]} 107. Kc3 {[%clk 0:00:13]}  Rh7 {[%clk 0:00:23]} 108. Rd6 {[%clk 0:00:13]}  Ke5 {[%clk 0:00:23]} 109. Rd1 {[%clk 0:00:13]}  Rc7+ {[%clk 0:00:23]} 110. Kd3 {[%clk 0:00:12]}  Kd5 {[%clk 0:00:23]} 111. Rh1 {[%clk 0:00:11]}  Ra7 {[%clk 0:00:23]} 112. Rh5+ {[%clk 0:00:11]}  Kc6 {[%clk 0:00:24]} 113. Rh6+ {[%clk 0:00:12]}  Kb5 {[%clk 0:00:24]} 114. Rh5+ {[%clk 0:00:13]}  Kb4 {[%clk 0:00:25]} 115. Rh4+ {[%clk 0:00:13]}  Kb3 {[%clk 0:00:26]} 116. Rh6 {[%clk 0:00:13]}  Rd7+ {[%clk 0:00:26]} 117. Ke4 {[%clk 0:00:13]}  Kc4 {[%clk 0:00:27]} 118. Rc6+ {[%clk 0:00:13]}  Kb5 {[%clk 0:00:28]} 119. Rh6 {[%clk 0:00:14]}  Rd1 {[%clk 0:00:28]} 120. Ke3 {[%clk 0:00:13]} 1/2-1/2


[Site "https://www.chess.com"]

[Event "Titled Tuesday Blitz April 12 Late 2022"]
[White "Reprintsev, Alexander"]
[Black "Grave, Jacob Templen"]
[WhiteFideId "14100541"]
[BlackFideId "1542656"]
[WhiteElo "2108"]
[BlackElo "1737"]
[Result "1-0"]
[Round "09"]
[TimeControl "180+1"]
[Date "2022.04.13"]
[WhiteClock "0:01:01"]
[BlackClock "0:00:02"]

1. e4 {[%clk 0:02:55]}  e5 {[%clk 0:02:56]} 2. f4 {[%clk 0:02:52]}  d5 {[%clk 0:02:51]} 3. exd5 {[%clk 0:02:51]}  exf4 {[%clk 0:02:49]} 4. Nf3 {[%clk 0:02:51]}  Nf6 {[%clk 0:02:48]} 5. Bb5+ {[%clk 0:02:51]}  Bd7 {[%clk 0:02:40]} 6. Bxd7+ {[%clk 0:02:49]}  Nbxd7 {[%clk 0:02:39]} 7. O-O {[%clk 0:02:48]}  Be7 {[%clk 0:02:33]} 8. c4 {[%clk 0:02:24]}  O-O {[%clk 0:02:17]} 9. d4 {[%clk 0:02:23]}  b5 {[%clk 0:02:13]} 10. b3 {[%clk 0:02:17]}  Nb6 {[%clk 0:02:09]} 11. Qd3 {[%clk 0:02:11]}  bxc4 {[%clk 0:01:46]} 12. bxc4 {[%clk 0:02:10]}  c6 {[%clk 0:01:23]} 13. dxc6 {[%clk 0:02:03]}  Rc8 {[%clk 0:01:22]} 14. Bxf4 {[%clk 0:01:51]}  Rxc6 {[%clk 0:01:22]} 15. Nbd2 {[%clk 0:01:51]}  Qc8 {[%clk 0:01:13]} 16. Rac1 {[%clk 0:01:50]}  Rd8 {[%clk 0:01:12]} 17. Ne5 {[%clk 0:01:43]}  Rxd4 {[%clk 0:00:45]} 18. Nxc6 {[%clk 0:01:32]}  Qxc6 {[%clk 0:00:44]} 19. Qxd4 {[%clk 0:01:27]}  Bc5 {[%clk 0:00:44]} 20. Be3 {[%clk 0:01:25]}  Bxd4 {[%clk 0:00:43]} 21. Bxd4 {[%clk 0:01:26]}  h5 {[%clk 0:00:20]} 22. Bxf6 {[%clk 0:01:24]}  gxf6 {[%clk 0:00:19]} 23. c5 {[%clk 0:01:21]}  Nd7 {[%clk 0:00:19]} 24. Nb3 {[%clk 0:01:20]}  Ne5 {[%clk 0:00:15]} 25. Rfd1 {[%clk 0:01:16]}  h4 {[%clk 0:00:13]} 26. h3 {[%clk 0:01:15]}  Qe4 {[%clk 0:00:03]} 27. Re1 {[%clk 0:01:09]}  Qf4 {[%clk 0:00:03]} 28. Rxe5 {[%clk 0:01:06]}  Qxe5 {[%clk 0:00:02]} 29. c6 {[%clk 0:01:07]}  Qe3+ {[%clk 0:00:02]} 30. Kh1 {[%clk 0:01:06]}  Qe8 {[%clk 0:00:01]} 31. c7 {[%clk 0:01:06]}  Qc8 {[%clk 0:00:02]} 32. Nd4 {[%clk 0:01:04]}  Kf8 {[%clk 0:00:02]} 33. Nb5 {[%clk 0:01:02]}  Ke7 {[%clk 0:00:02]} 34. Nxa7 {[%clk 0:01:01]} 1-0


[Site "https://www.chess.com"]